bitfinex-derivatives/quotes_ETHF0:USTF0_20250620
["timestamp","ask_amount","ask_price","bid_price","bid_amount"]
[1750420099792,0.78285,2554.6,2554.4,5.25778]
[1750420100186,30.702,2554.7,2554.5,8.63506]
[1750420100386,31.48481,2554.7,2554.6,7.8522]
[1750420100697,0.78287,2554.5,2554.4,3.2078]
[1750420100886,0.7829,2554.4,2554.3,0.78292]
[1750420101087,24.35633781,2554.4,2554.3,8.63512]
[1750420101387,25.13923781,2554.4,2554.3,8.63512]
[1750420101590,25.13923781,2554.4,2554.2,1.49046]
[1750420101786,0.06933781,2554.4,2554.2,0.7075]
[1750420101996,0.06933781,2554.4,2554.3,9.96163]
[1750420102197,6.405,2555.0,2554.3,9.1787]
[1750420102198,7.18773,2555.0,2554.3,9.1787]
[1750420102402,31.50873,2555.0,2554.9,8.63495]
[1750420102699,31.50872,2555.0,2554.9,8.63495]
[1750420102996,0.78275,2554.9,2554.8,1.49646]
[1750420103197,30.732,2555.0,2554.9,8.63495]
[1750420103401,31.51472,2555.0,2554.9,7.8522]
[1750420103587,31.51472,2555.0,2554.9,0.78275]
[1750420103791,31.51472,2555.0,2554.9,2.10925]
[1750420103993,31.51472,2555.0,2554.9,1.3265]
[1750420104194,30.732,2555.0,2554.9,2.10925]
[1750420104599,31.51472,2555.0,2554.9,2.10925]
[1750420104806,31.51472,2555.0,2554.9,1.3265]
[1750420105098,0.78275,2554.9,2554.8,0.7137]
[1750420105298,0.78275,2554.9,2554.8,2.0272]
[1750420105497,0.78275,2554.9,2554.8,9.8794]
[1750420105694,0.78278,2554.8,2554.7,3.2078]
[1750420107702,5.16442,2555.3,2554.7,11.06]
[1750420107897,0.78278,2554.8,2554.7,3.2078]
[1750420108095,0.78278,2554.8,2554.7,11.84279]
[1750420108610,0.78278,2554.8,2554.7,11.06]
[1750420108796,0.78278,2554.8,2554.7,11.84281]
[1750420109300,0.78278,2554.8,2554.7,3.2078]
[1750420109495,0.78278,2554.8,2554.7,3.99061]
[1750420109694,0.78278,2554.8,2554.7,3.2078]
[1750420110206,0.78278,2554.8,2554.7,3.99061]
[1750420110612,0.78278,2554.8,2554.7,3.2078]
[1750420111103,0.78278,2554.8,2554.7,3.99061]
[1750420112703,7.18878,2554.9,2554.7,11.06]
[1750420112903,7.18878,2554.9,2554.8,7.8522]
[1750420113606,7.18878,2554.9,2554.8,8.63498]
[1750420114704,8.36294,2554.9,2554.5,0.6798]
[1750420114905,0.78287,2554.5,2554.4,3.2078]
[1750420115105,31.46787,2554.5,2554.4,3.2078]
[1750420115309,31.46787,2554.5,2554.4,11.06]
[1750420115703,31.46787,2554.5,2554.4,11.8429]
[1750420116007,31.46787,2554.5,2554.4,11.06]
[1750420116407,31.46787,2554.5,2554.4,11.8429]
[1750420117306,31.46787,2554.5,2554.4,11.06]
[1750420117503,31.46787,2554.5,2554.4,11.8429]
[1750420119907,30.685,2554.5,2554.4,11.8429]
[1750420120114,30.685,2554.5,2554.4,8.6351]
[1750420120302,31.46787,2554.5,2554.4,8.6351]
[1750420120803,31.46787,2554.5,2554.4,9.9528]
[1750420121310,30.685,2554.5,2554.4,9.9528]
[1750420121703,31.46787,2554.5,2554.4,9.9528]
[1750420122209,31.46787,2554.5,2554.4,9.1699]
[1750420122807,31.46787,2554.5,2554.4,9.9528]
[1750420123013,0.06933781,2554.8,2554.7,0.78281]
[1750420123204,0.06933781,2554.8,2554.7,7.8522]
[1750420123205,0.85214781,2554.8,2554.7,7.8522]
[1750420123399,0.78281,2554.7,2554.6,3.2078]
[1750420123617,32.475009,2554.7,2554.6,3.2078]
[1750420125013,32.475009,2554.7,2554.6,3.99064]
[1750420125014,1.071199,2554.7,2554.6,3.99064]
[1750420125306,1.854009,2554.7,2554.6,14.90821699]
[1750420125508,1.071199,2554.7,2554.6,14.90821699]
[1750420126113,0.7828,2554.8,2554.7,0.78281]
[1750420126412,1.85525986,2554.8,2554.7,8.63501]
[1750420126608,1.92459767,2554.8,2554.7,9.31701]
[1750420127110,1.14179767,2554.8,2554.7,9.31701]
[1750420127410,25.38379767,2554.8,2554.7,10.70001]
[1750420127815,26.16657767,2554.8,2554.7,10.70001]
[1750420128517,25.38379767,2554.8,2554.7,10.70001]
[1750420129119,1.14179767,2554.8,2554.7,10.70001]
[1750420129617,1.92457767,2554.8,2554.7,10.70001]
[1750420129816,1.92457767,2554.8,2554.7,9.9172]
[1750420130116,1.92457767,2554.8,2554.7,8.5342]
[1750420130914,1.92457767,2554.8,2554.7,0.682]
[1750420131120,0.78281,2554.7,2554.6,3.99064]
[1750420131314,26.06526986,2554.7,2554.6,3.2078]
[1750420131510,26.06526986,2554.7,2554.6,11.06]
[1750420131715,29.13064685,2554.7,2554.6,11.06]
[1750420131916,29.13064685,2554.7,2554.6,11.84284]
[1750420132219,0.7829,2554.4,2554.3,3.9371]
[1750420132408,0.78298,2554.2,2554.1,0.78296]
[1750420132610,24.99998,2554.2,2554.1,0.78296]
[1750420132805,24.217,2554.2,2554.1,8.63516]
[1750420133513,24.217,2554.2,2554.1,9.96666]
[1750420133712,24.99996,2554.2,2554.1,7.8522]
[1750420135524,24.99996,2554.2,2554.1,8.63519]
[1750420136122,24.99996,2554.2,2554.1,7.8522]
[1750420136326,24.217,2554.2,2553.9,3.2078]
[1750420137016,0.78302,2554.0,2553.9,3.99084]
[1750420137216,30.626,2554.0,2553.9,3.99084]
[1750420137417,30.626,2554.0,2553.9,7.05621699]
[1750420138218,0.78302,2554.1,2554.0,0.78302]
[1750420138518,0.78302,2554.1,2553.9,11.84303]
[1750420138519,0.78302,2554.0,2553.9,11.84303]
[1750420139422,31.40901,2554.1,2554.0,0.78302]
[1750420139814,0.78302,2554.0,2553.9,3.99084]
[1750420140015,0.78302,2554.0,2553.9,11.84304]
[1750420140216,31.40902,2554.1,2554.0,0.78302]
[1750420140415,30.626,2554.1,2553.9,11.7514]
[1750420140817,0.78302,2554.0,2553.9,12.53442]
[1750420141022,0.78302,2554.0,2553.9,3.8992]
[1750420141327,0.78302,2554.0,2553.9,3.2078]
[1750420142223,0.78302,2554.0,2553.9,3.99086]
[1750420142418,1.9976,2554.4,2553.9,3.99086]
[1750420142419,4.29621316,2554.7,2554.0,1.95757]
[1750420142728,0.7829,2554.4,2554.3,3.06537699]
[1750420143026,1.85555097,2554.4,2554.3,0.78293]
[1750420143224,0.78293,2554.3,2554.2,3.99074]
[1750420143419,25.01693,2554.3,2554.2,11.84294]
[1750420143619,24.234,2554.3,2554.2,11.84294]
[1750420144025,25.01693,2554.3,2554.2,11.84294]
[1750420144223,26.08958394,2554.3,2554.2,11.84294]
[1750420144421,26.08958394,2554.3,2554.2,3.2078]
[1750420144620,0.78296,2554.2,2554.1,5.91435699]
[1750420144818,25.30665394,2554.3,2554.2,8.63516]
[1750420144819,25.01696,2554.3,2554.2,8.63516]
[1750420145019,26.08970697,2554.3,2554.2,8.63516]
[1750420145214,0.78296,2554.2,2554.1,5.91435699]
[1750420145426,0.78296,2554.2,2554.1,0.6914]
[1750420145625,0.78296,2554.2,2554.1,9.32659]
[1750420146023,25.01696,2554.3,2554.2,0.78296]
[1750420146318,45.88286,2554.6,2554.5,0.78287]
[1750420146524,77.55872055,2554.6,2554.5,7.8522]
[1750420146718,0.7829,2554.4,2554.3,2.06003]
[1750420147126,1.85578055,2554.4,2554.3,9.1293]
[1750420147428,1.85578055,2554.4,2554.3,9.91223]
[1750420147827,1.85578055,2554.4,2554.3,9.1293]
[1750420148533,1.85578055,2554.4,2554.3,9.91223]
[1750420148726,1.85578055,2554.4,2554.3,9.1293]
[1750420149226,1.85578055,2554.4,2554.3,7.8522]
[1750420149525,0.78293,2554.3,2554.2,3.2078]
[1750420149729,0.78303,2554.0,2553.9,3.2078]
[1750420150035,24.98803,2554.0,2553.9,3.2078]
[1750420150233,24.98803,2554.0,2553.9,11.06]
[1750420150434,24.205,2554.0,2553.9,16.17283699]
[1750420150932,0.78298,2554.2,2554.1,0.78297]
[1750420151122,31.34998,2554.2,2554.1,8.63517]
[1750420151327,31.34998,2554.2,2554.1,7.8522]
[1750420151526,0.78302,2554.0,2553.9,4.4722]
[1750420151726,24.98702,2554.0,2553.9,4.4722]
[1750420151925,24.98702,2554.0,2553.9,12.3244]
[1750420152430,24.98702,2554.0,2553.9,11.06]
[1750420154057,24.202,2554.0,2553.9,11.06]
[1750420154245,24.98502,2554.0,2553.9,12.3328]
[1750420154444,24.98502,2554.0,2553.9,11.06]
[1750420155352,24.98502,2554.0,2553.9,11.84306]
[1750420155852,24.98502,2554.0,2553.9,11.06]
[1750420156053,24.98502,2554.0,2553.9,11.84306]
[1750420156852,24.98502,2554.0,2553.9,11.06]
[1750420158452,0.78312,2553.7,2553.6,3.2078]
[1750420158653,31.31412,2553.7,2553.6,11.06]
[1750420158847,32.38720629,2553.7,2553.6,11.06]
[1750420159655,1.07308629,2553.7,2553.6,16.84315]
[1750420159851,0.78307,2553.9,2553.8,0.78307]
[1750420160053,6.356,2554.1,2554.0,8.63522]
[1750420160252,31.66538865,2554.1,2554.0,11.84302]
[1750420160658,32.44837865,2554.1,2554.0,11.06]
[1750420162054,32.44837865,2554.1,2554.0,12.3806]
[1750420163461,0.78309,2553.8,2553.7,0.734]
[1750420163757,0.78309,2553.8,2553.7,9.9376]
[1750420164754,1.95778,2553.8,2553.3,3.2078]
[1750420164955,1.95778,2553.8,2553.0,1.95829]
[1750420164956,1.958,2553.5,2553.1,4.41677699]
[1750420165263,0.78324,2553.3,2553.2,1.3514]
[1750420165761,7.14024,2553.3,2553.2,9.2036]
[1750420166256,7.14024,2553.3,2552.7,6.27317699]
[1750420166257,1.95821,2553.2,2552.7,6.27317699]
[1750420166557,4.59184699,2553.2,2553.1,7.8522]
[1750420166758,28.82384699,2553.2,2553.1,7.8522]
[1750420166960,0.78336,2552.9,2552.8,1.2865]
[1750420167152,0.78339,2552.8,2552.7,6.27317699]
[1750420167357,0.78333,2553.0,2552.9,7.8522]
[1750420167655,0.78344,2552.7,2552.6,0.78345]
[1750420167955,0.78336,2552.9,2552.8,7.8522]
[1750420168459,0.78339,2552.8,2552.7,3.84876699]
[1750420168652,0.78338,2552.9,2552.8,7.8522]
[1750420168957,31.37135,2553.0,2552.8,7.8522]
[1750420169152,31.37134,2553.0,2552.8,0.78338]
[1750420169553,30.588,2553.0,2552.9,3.84873699]
[1750420170753,6.358,2553.2,2553.1,0.7833]
[1750420170951,30.583,2553.2,2553.1,11.70087699]
[1750420171958,54.6768,2553.6,2553.3,0.78324]
[1750420172164,24.223,2553.5,2553.4,8.63539]
[1750420172353,25.00618,2553.5,2553.4,8.63539]
[1750420172554,25.00618,2553.5,2553.4,0.78319]
[1750420172861,0.78322,2553.4,2553.3,0.78321]
[1750420173052,0.78322,2553.4,2553.3,8.63541]
[1750420174467,0.78322,2553.4,2553.3,0.78321]
[1750420174666,1.49393,2553.4,2553.3,0.78324]
[1750420176061,30.561,2553.5,2553.4,0.78321]
[1750420176367,33.62637699,2553.5,2553.0,1.9598]
[1750420176558,3.84861699,2553.3,2553.2,8.63547]
[1750420176758,28.04761699,2553.3,2553.2,8.63547]
[1750420176958,24.98224,2553.3,2553.2,0.78327]
[1750420177564,24.98226,2553.3,2553.2,0.78327]
[1750420177765,28.04763699,2553.3,2553.2,0.78327]
[1750420178263,0.78328,2553.2,2553.1,0.78328]
[1750420178462,24.98226,2553.3,2553.2,0.78327]
[1750420179269,0.7833,2553.1,2553.0,2.80461]
[1750420179466,31.3373,2553.1,2553.0,2.80461]
[1750420179662,30.554,2553.1,2553.0,10.65681]
[1750420180057,31.3373,2553.1,2553.0,10.65681]
[1750420180368,31.3373,2553.1,2553.0,7.8522]
[1750420180867,31.3373,2553.1,2553.0,8.63553]
[1750420183767,0.78333,2553.0,2552.9,3.2078]
[1750420184168,0.78333,2553.0,2552.9,11.06]
[1750420184370,0.78333,2553.0,2552.9,11.84336]
[1750420188980,0.78333,2553.0,2552.9,11.06]
[1750420189171,31.217,2553.1,2552.9,11.06]
[1750420189375,0.78333,2553.0,2552.9,11.06]
[1750420190086,0.78333,2553.0,2552.9,8.63556]
[1750420190271,0.78333,2553.0,2552.9,7.8522]
[1750420194288,0.78336,2552.9,2552.8,0.6771]
[1750420194487,24.91836,2552.9,2552.8,9.31269]
[1750420194892,24.91836,2552.9,2552.8,8.5293]
[1750420195283,24.91836,2552.9,2552.8,9.31269]
[1750420195587,24.91836,2552.9,2552.8,10.59309]
[1750420196195,24.91836,2552.9,2552.8,9.8097]
[1750420196393,24.91836,2552.9,2552.8,10.59309]
[1750420196799,0.78336,2552.9,2552.8,10.59309]
[1750420196998,24.89836,2552.9,2552.8,13.65846699]
[1750420197491,24.89836,2552.9,2552.8,9.8097]
[1750420197693,24.89836,2552.9,2552.8,8.5293]
[1750420198696,24.89836,2552.9,2552.8,9.31269]
[1750420199596,24.89836,2552.9,2552.8,8.5293]
[1750420199897,24.89836,2552.9,2552.8,9.31269]
[1750420200096,24.89836,2552.9,2552.8,10.61949]
[1750420200396,24.89836,2552.9,2552.8,13.68486699]
[1750420201994,24.89836,2552.9,2552.8,12.90147699]
[1750420202299,24.89836,2552.9,2552.8,10.61947]
[1750420203192,7.13331,2553.1,2553.0,0.78332]
[1750420203390,32.3101011,2553.1,2553.0,7.8522]
[1750420203589,0.78336,2552.9,2552.8,2.76726]
[1750420203790,24.88336,2552.9,2552.8,0.6771]
[1750420203989,24.88336,2552.9,2552.8,8.5293]
[1750420204389,25.96031648,2552.9,2552.8,8.5293]
[1750420204793,0.78345,2552.6,2552.5,0.78347]
[1750420205097,0.78345,2552.6,2552.5,2.85107]
[1750420205301,0.78345,2552.6,2552.5,10.70327]
[1750420206503,0.78345,2552.6,2552.5,9.9198]
[1750420206698,0.78345,2552.6,2552.5,7.8522]
[1750420207000,0.78348,2552.5,2552.4,3.2078]
[1750420207396,0.7836,2552.2,2552.1,0.78359]
[1750420207596,0.7836,2552.2,2552.1,10.63009]
[1750420208097,0.7836,2552.2,2552.1,9.8465]
[1750420208900,0.7836,2552.2,2552.1,10.6301]
[1750420209207,0.7836,2552.2,2552.1,7.8522]
[1750420209403,0.7836,2552.2,2552.1,10.7359]
[1750420209794,0.7836,2552.2,2552.1,9.9523]
[1750420210100,0.7836,2552.2,2552.1,8.5745]
[1750420210296,0.7836,2552.2,2552.1,0.7223]
[1750420211305,0.7836,2552.2,2552.1,1.5059]
[1750420211504,0.7836,2552.2,2552.1,2.784]
[1750420212508,0.7836,2552.2,2552.1,2.0004]
[1750420213605,0.7836,2552.2,2552.1,0.7223]
[1750420214009,0.78369,2551.8,2551.7,3.2078]
[1750420214202,0.78369,2551.8,2551.7,4.716]
[1750420214398,0.78369,2551.8,2551.7,12.5682]
[1750420214807,24.88769,2551.8,2551.7,8.5767]
[1750420215307,0.78376,2551.6,2551.5,0.78377]
[1750420215505,0.78376,2551.6,2551.5,1.50827]
[1750420215812,0.78376,2551.6,2551.5,10.69957]
[1750420216896,0.78379,2551.5,2551.4,3.2078]
[1750420217101,7.07579,2551.5,2551.4,11.06]
[1750420217302,7.07579,2551.5,2551.4,3.2078]
[1750420217502,0.78385,2551.3,2551.2,0.6688]
[1750420218008,0.78385,2551.3,2551.2,8.521]
[1750420219205,0.78385,2551.3,2551.2,9.30488]
[1750420219611,0.78385,2551.3,2551.2,8.521]
[1750420219803,0.78385,2551.3,2551.2,9.30488]
[1750420220612,0.78384,2551.4,2551.3,0.78385]
[1750420220804,31.18284,2551.4,2551.3,2.13285]
[1750420221514,0.78379,2551.6,2551.5,0.78376]
[1750420221812,31.18479,2551.6,2551.5,8.63596]
[1750420222699,3.2078,2551.8,2551.5,7.8522]
[1750420222901,30.401,2551.7,2551.6,9.2012]
[1750420223104,6.294,2551.8,2551.7,0.78373]
[1750420223309,6.294,2551.8,2551.7,8.63593]
[1750420223503,7.07767,2552.0,2551.9,0.78365]
[1750420223814,7.07767,2552.0,2551.9,7.8522]
[1750420223815,10.14304699,2552.0,2551.9,7.8522]
[1750420224004,0.78366,2551.9,2551.8,2.06737]
[1750420224404,0.78366,2551.9,2551.8,9.91957]
[1750420224916,10.14303699,2552.0,2551.9,0.78366]
[1750420225115,10.14303699,2552.0,2551.9,8.63586]
[1750420225306,0.78366,2551.9,2551.8,1.2837]
[1750420225707,10.14303699,2552.0,2551.9,0.78366]
[1750420225909,10.14303699,2552.0,2551.9,8.63586]
[1750420226108,10.14303699,2552.0,2551.9,0.78366]
[1750420226409,3.84903699,2552.0,2551.9,3.99146]
[1750420226606,3.84903699,2552.0,2551.9,3.2078]
[1750420227315,3.84903699,2552.0,2551.9,3.99146]
[1750420227913,3.84903699,2552.0,2551.9,3.2078]
[1750420228115,3.84903699,2552.0,2551.9,3.99146]
[1750420228412,10.14300699,2552.0,2551.9,3.2078]
[1750420229811,0.78373,2551.7,2551.6,5.94563]
[1750420230220,0.78372,2551.8,2551.7,0.78372]
[1750420230814,0.78372,2551.8,2551.7,7.8522]
[1750420231312,0.78372,2551.8,2551.6,3.8741]
[1750420231313,0.78373,2551.7,2551.6,3.8741]
[1750420231512,6.294,2551.7,2551.6,12.51006]
[1750420231913,0.78366,2552.0,2551.7,0.78373]
[1750420232113,0.78366,2552.0,2551.9,7.8522]
[1750420232313,7.07766,2552.0,2551.9,7.8522]
[1750420232614,7.07764,2552.0,2551.9,3.99146]
[1750420232813,7.07764,2552.0,2551.9,4.5448]
[1750420233515,7.07764,2552.0,2551.9,12.397]
[1750420235717,6.294,2552.1,2551.9,12.397]
[1750420235925,7.0776,2552.1,2552.0,0.6357]
[1750420236120,7.0776,2552.1,2552.0,9.8699]
[1750420236422,7.0776,2552.1,2552.0,8.4879]
[1750420237525,0.7836,2552.1,2552.0,9.27153]
[1750420237726,0.7836,2552.1,2552.0,9.8699]
[1750420241421,1.86051171,2552.1,2552.0,8.4879]
[1750420241723,1.86051171,2552.1,2552.0,0.6357]
[1750420243133,1.86448374,2552.1,2552.0,0.6357]
[1750420243630,8.15548374,2552.1,2552.0,0.6357]
[1750420244526,1.86448374,2552.1,2552.0,0.6357]
[1750420244829,8.15548374,2552.1,2552.0,0.6357]
[1750420245632,8.15548374,2552.1,2552.0,1.41933]
[1750420245926,8.15548374,2552.1,2552.0,0.6357]
[1750420246632,8.15670398,2552.1,2552.0,1.41933]
[1750420246934,8.15670398,2552.1,2552.0,0.6357]
[1750420247434,8.15670398,2552.1,2552.0,1.41933]
[1750420247738,8.15670398,2552.1,2552.0,0.6357]
[1750420248030,0.78363,2552.0,2551.9,3.2078]
[1750420248227,0.78363,2552.0,2551.9,3.99146]
[1750420248433,30.398,2552.1,2552.0,0.78363]
[1750420248628,0.78363,2552.0,2551.9,3.2078]
[1750420249031,0.78363,2552.0,2551.9,11.84366]
[1750420249532,1.86621589,2552.0,2551.9,11.84366]
[1750420249733,1.86621589,2552.0,2551.9,13.22006]
[1750420252334,1.86621589,2552.0,2551.9,12.4364]
[1750420252630,1.86621589,2552.0,2551.9,11.06]
[1750420252830,1.86621589,2552.0,2551.9,11.84366]
[1750420253428,1.86621589,2552.0,2551.9,11.06]
[1750420254135,2.49211589,2552.0,2551.9,11.06]
[1750420254836,0.78377,2551.7,2551.6,3.2078]
[1750420255039,10.13914699,2551.7,2551.6,3.2078]
[1750420255830,11.22276307,2551.7,2551.6,3.2078]
[1750420256337,8.15738608,2551.7,2551.6,3.2078]
[1750420256633,7.07477,2551.7,2551.6,14.90913699]
[1750420258035,6.291,2551.7,2551.6,14.90913699]
[1750420258430,7.07473,2551.7,2551.6,14.90913699]
[1750420258633,0.78373,2551.8,2551.7,0.7837]
[1750420258842,1.86700768,2551.8,2551.7,9.1246]
[1750420259136,1.86700768,2551.8,2551.7,10.58273]
[1750420259937,1.86700768,2551.8,2551.7,9.799]
[1750420260138,1.86700768,2551.8,2551.7,10.58273]
[1750420260935,1.86700768,2551.8,2551.7,9.799]
[1750420261830,1.86700768,2551.8,2551.7,10.58273]
[1750420262233,1.86700768,2551.8,2551.7,13.64810699]
[1750420262839,1.08327768,2551.8,2551.7,13.64810699]
[1750420263138,1.86697768,2551.8,2551.7,13.64810699]
[1750420264834,1.86697768,2551.8,2551.7,10.58273]
[1750420265733,1.93631549,2551.8,2551.7,7.8522]
[1750420266035,2.59161549,2551.8,2551.7,7.8522]
[1750420266539,0.78373,2551.7,2551.6,3.2078]
[1750420267039,1.86645889,2551.7,2551.6,11.06]
[1750420267633,0.78379,2551.5,2551.4,0.6459]
[1750420268038,9.35637699,2551.5,2551.1,3.2078]
[1750420268240,0.78388,2551.2,2551.1,11.06]
[1750420269331,0.78388,2551.2,2551.1,7.8522]
[1750420270541,0.78397,2550.9,2550.8,4.5831]
[1750420270744,0.78397,2550.9,2550.8,11.06]
[1750420271239,0.78397,2550.9,2550.8,3.2078]
[1750420271438,0.784,2550.8,2550.7,0.6454]
[1750420271740,0.784,2550.8,2550.7,9.28163]
[1750420272133,0.784,2550.8,2550.7,10.59693]
[1750420272334,0.784,2550.8,2550.7,9.8129]
[1750420272540,0.784,2550.8,2550.7,10.59693]
[1750420273248,0.784,2550.8,2550.7,9.8129]
[1750420273434,0.784,2550.8,2550.7,10.59693]
[1750420273942,0.784,2550.8,2550.7,0.6454]
[1750420274541,0.784,2550.8,2550.7,8.4976]
[1750420276342,0.784,2550.8,2550.7,9.28163]
[1750420280041,0.784,2550.8,2550.7,10.59033]
[1750420280440,6.286,2551.0,2550.9,0.78397]
[1750420280639,6.286,2551.0,2550.9,11.70154699]
[1750420281252,51.433,2551.6,2550.9,20.28585398]
[1750420281549,7.07077,2551.6,2551.5,7.8522]
[1750420281744,6.287,2551.6,2551.5,8.63599]
[1750420281944,7.07076,2551.6,2551.5,10.60239]
[1750420282343,6.287,2551.6,2551.5,10.60239]
[1750420282734,7.07076,2551.6,2551.5,10.60239]
[1750420283141,7.07076,2551.6,2551.5,9.8186]
[1750420284145,7.07076,2551.6,2551.5,8.5157]
[1750420284741,7.07076,2551.6,2551.5,9.29949]
[1750420285652,6.287,2551.6,2551.5,10.58649]
[1750420286541,7.07076,2551.6,2551.5,10.58649]
[1750420286939,6.287,2551.6,2551.5,10.58649]
[1750420287747,7.07076,2551.6,2551.5,10.58649]
[1750420288344,7.07076,2551.6,2551.5,9.8027]
[1750420288848,7.07076,2551.6,2551.5,10.58649]
[1750420289046,7.07076,2551.6,2551.5,9.8027]
[1750420289254,7.07076,2551.6,2551.5,10.58649]
[1750420290655,6.287,2551.6,2551.5,10.58649]
[1750420293255,6.287,2552.0,2551.9,0.78366]
[1750420293454,6.287,2552.0,2551.9,14.90903699]
[1750420293656,0.6354,2552.3,2552.0,0.78361]
[1750420293657,0.78363,2552.1,2552.0,0.78361]
[1750420293857,0.78363,2552.1,2552.0,2.75781]
[1750420294162,0.78363,2552.1,2552.0,10.61001]
[1750420295249,0.78363,2552.1,2552.0,9.8264]
[1750420295444,0.78373,2551.7,2551.6,3.2078]
[1750420295649,10.13510699,2551.7,2551.6,11.06]
[1750420296360,10.13510699,2551.7,2551.6,8.63596]
[1750420296361,7.06973,2551.7,2551.6,8.63596]
[1750420296551,6.286,2551.7,2551.6,8.63596]
[1750420297554,6.286,2551.7,2551.6,9.28376]
[1750420297964,7.06973,2551.7,2551.6,9.28376]
[1750420298460,6.286,2551.7,2551.6,9.28376]
[1750420298958,7.06973,2551.7,2551.6,9.28376]
[1750420299159,6.286,2551.7,2551.6,9.28376]
[1750420301252,7.06973,2551.7,2551.6,9.28376]
[1750420302749,7.06973,2551.7,2551.6,7.8522]
[1750420302950,0.78379,2551.5,2551.4,1.46681]
[1750420303261,3.84916699,2551.5,2551.4,1.46681]
[1750420303557,3.84916699,2551.5,2551.4,9.31901]
[1750420303756,3.84916699,2551.5,2551.4,8.5352]
[1750420303958,8.24537,2551.7,2551.5,0.78376]
[1750420303959,0.78379,2551.6,2551.5,0.78376]
[1750420304159,0.78379,2551.6,2551.5,8.63596]
[1750420305560,7.06975,2551.7,2551.6,0.78376]
[1750420305755,0.78375,2551.7,2551.6,8.63596]
[1750420306056,6.278,2551.7,2551.6,8.63596]
[1750420306560,7.06173,2551.7,2551.6,8.63596]
[1750420307059,6.278,2551.7,2551.6,8.63596]
[1750420307260,7.06173,2551.7,2551.6,8.63596]
[1750420310458,7.36434676,2551.7,2551.6,11.84376]
[1750420310963,7.36434676,2551.7,2551.6,13.17436]
[1750420311257,48.3648,2552.4,2551.6,12.3906]
[1750420311563,1.08630478,2552.2,2552.1,8.63581]
[1750420311765,5.66803316,2552.6,2552.1,8.63581]
[1750420311766,2.33915316,2552.8,2552.2,3.91789]
[1750420311953,10.26911,2553.1,2553.0,0.78333]
[1750420312154,10.26911,2553.1,2553.0,8.63553]
[1750420312355,0.78333,2553.0,2552.9,0.78334]
[1750420312557,6.278,2553.1,2552.9,7.8522]
[1750420312756,3.06537699,2553.0,2552.5,3.2078]
[1750420313055,3.84879699,2552.7,2552.6,7.8522]
[1750420314461,3.84879699,2552.7,2552.6,8.63565]
[1750420314659,27.80297699,2552.9,2552.6,7.8522]
[1750420314860,0.78338,2552.8,2552.7,8.63558]
[1750420315359,27.80297699,2552.9,2552.7,0.78338]
[1750420315561,0.78338,2552.8,2552.7,0.78338]
[1750420316053,28.58634699,2552.9,2552.7,0.78338]
[1750420316253,0.78338,2552.8,2552.7,0.78338]
[1750420320373,0.78341,2552.7,2552.6,0.78342]
[1750420320760,0.78341,2552.7,2552.6,8.63562]
[1750420321269,0.7834,2552.8,2552.7,0.78338]
[1750420321465,24.86638,2552.9,2552.8,0.78338]
[1750420322071,24.85638,2552.9,2552.8,8.63558]
[1750420322267,24.073,2552.9,2552.8,11.84338]
[1750420323372,24.85635,2552.9,2552.8,11.84338]
[1750420323568,24.85635,2552.9,2552.8,3.2078]
[1750420324463,24.073,2552.9,2552.3,3.2078]
[1750420324671,0.78341,2552.7,2552.6,7.8522]
[1750420324860,7.05941,2552.7,2552.6,7.8522]
[1750420325475,6.276,2552.7,2552.6,8.63564]
[1750420326576,6.276,2552.7,2552.6,9.92254]
[1750420328962,7.05941,2552.7,2552.6,9.92254]
[1750420330976,7.05941,2552.7,2552.6,8.63564]
[1750420331185,7.71491,2552.7,2552.6,8.63564]
[1750420331876,7.05941,2552.7,2552.6,8.63564]
[1750420334378,6.276,2552.7,2552.6,8.63564]
[1750420334577,7.05942,2552.7,2552.6,8.63564]
[1750420335072,0.6327,2552.9,2552.6,7.8522]
[1750420335273,6.267,2552.9,2552.7,7.8522]
[1750420335575,0.78345,2552.7,2552.6,8.63564]
[1750420335982,24.84645,2552.7,2552.6,7.8522]
[1750420337173,29.063,2552.7,2552.1,2.05769]
[1750420337376,0.78361,2552.1,2552.0,3.2078]
[1750420337571,31.11261,2552.1,2552.0,3.2078]
[1750420337766,31.77831,2552.1,2552.0,3.2078]
[1750420339676,0.7837,2551.8,2551.7,2.72512]
[1750420339879,24.061,2551.8,2551.7,2.72512]
[1750420340077,24.8447,2551.8,2551.7,10.57732]
[1750420345387,24.061,2551.8,2551.7,10.57732]
[1750420345988,24.8447,2551.8,2551.7,10.57732]
[1750420346293,24.061,2551.8,2551.7,10.57732]
[1750420346493,24.8447,2551.8,2551.7,10.57732]
[1750420348495,24.8447,2551.8,2551.7,9.30333]
[1750420349692,24.8447,2551.8,2551.7,8.5196]
[1750420350392,24.8447,2551.8,2551.7,9.30333]
[1750420350794,24.8447,2551.8,2551.7,8.5196]
[1750420351302,6.268,2552.1,2552.0,0.78364]
[1750420351488,30.328,2552.1,2552.0,7.8522]
[1750420351693,31.11161,2552.1,2552.0,7.8522]
[1750420351997,31.11161,2552.1,2552.0,8.63584]
[1750420352298,31.11161,2552.1,2552.0,7.8522]
[1750420352696,31.11161,2552.1,2551.7,6.93968699]
[1750420352697,0.7837,2551.9,2551.8,0.78369]
[1750420352896,0.7837,2551.9,2551.8,0.78367]
[1750420353100,0.7837,2551.9,2551.8,8.63587]